[Event "Portuguese-ch U14-20 2022"]
[Site "Fatima"]
[Date "2022.04.11"]
[Round "3.22"]
[White "Ribeiro, Gustavo"]
[Black "Sarabando, Rodrigo Andias"]
[Result "1-0"]
[ECO "A16"]
[WhiteElo "1860"]
[BlackElo "1897"]
[Annotator "NA RC"]
[PlyCount "69"]
[EventDate "2022.04.10"]
[EventType "swiss"]
[EventCountry "POR"]
[SourceTitle "playchess.com"]
[Source "ChessBase"]
[SourceQuality "1"]
[TimeControl "5400+30"]

1. c4 {[%emt 0:00:57]} Nf6 {[%emt 0:00:03]} 2. Nc3 {[%emt 0:00:04]} g6 {[%emt 0:00:07]} 3. e4 {[%emt 0:00:13]} d6 {[%emt 0:00:05]} 4. g3 {[%emt 0:00:16]} Bg7 {[%emt 0:00:08]} 5. Bg2 {[%emt 0:00:08]} O-O {[%emt 0:00:08]} 6. Nge2 {[%emt 0:00:21]} Nc6 {[%emt 0:00:33]} 7. O-O {[%emt 0:00:45]} e5 {[%emt 0:00:11]} 8. d3 {[%emt 0:00:09]} Nd7 {[%emt 0:01:30]} 9. f4 {[%emt 0:00:42]} f5 {[%emt 0:05:23] 9...f5 is better than 9...exf4.} 10. Rb1 {[%emt 0:01:28]} Nf6 {[%emt 0:02:06] [#]} 11. fxe5 $146 {[%emt 0:06:14]} ({Predecessor:} 11. b4 Be6 12. Nd5 Ne7 13. Nec3 c6 14. fxe5 dxe5 15. Nxf6+ Bxf6 16. Be3 f4 {0-1 (16) Hajsman,M (1637)-Cerdo Fernandez,M (1861) Calvia 2019}) 11... dxe5 {[%emt 0:01:40]} 12. Nd5 {[%emt 0:01:21]} Nxd5 {[%emt 0:00:38]} 13. cxd5 {[%emt 0:00:11]} Nd4 {[%emt 0:00:35]} 14. Nxd4 {[%emt 0:03:35]} exd4 {[%emt 0:00:09]} 15. Qc2 {[%emt 0:01:42]} Bd7 {[%emt 0:01:46]} 16. Bf4 {[%emt 0:02:40]} c6 {[%emt 0:02:24]} 17. Qb3 {[%emt 0:02:05]} Kh8 {[%emt 0:02:02]} 18. Qxb7 {[%emt 0:01:52]} cxd5 {[%emt 0:00:50]} 19. Qxd5 {[%emt 0:00:23]} Re8 {[%emt 0:03:14]} 20. exf5 {[%emt 0:00:30]} Rc8 {[%emt 0:01:54]} 21. fxg6 {[%emt 0:00:14]} hxg6 {[%emt 0:00:50]} (21... Bg4 $142 22. Qxd8 Rcxd8) 22. Bg5 {[%emt 0:00:16]} Qc7 {[%emt 0:07:55]} 23. Rbc1 {[%emt 0:00:09]} Qe5 {[%emt 0:06:11]} 24. Qxd7 {[%emt 0:00:05]} Rxc1 $18 {[%emt 0:01:24]} 25. Bxc1 {[%emt 0:00:05]} Re7 {[%emt 0:00:38]} 26. Qh3+ {[%emt 0:00:17]} Kg8 {[%emt 0:00:27]} 27. Be4 {[%emt 0:00:14]} Qd6 {[%emt 0:02:04]} 28. Bh6 {[%emt 0:00:11]} Rc7 {[%emt 0:01:53]} 29. Bf4 {[%emt 0:00:37]} Be5 {[%emt 0:00:06]} 30. Bxe5 {[%emt 0:00:06]} Qxe5 {[%emt 0:00:10]} 31. Qg4 {[%emt 0:00:02]} Rg7 {[%emt 0:04:08]} 32. Qc8+ {[%emt 0:00:28]} Kh7 {[%emt 0:00:17]} 33. Rf8 {[%emt 0:00:03]} Rc7 {[%emt 0:00:07]} 34. Qh3+ {[%emt 0:00:04]} Kg7 {[%emt 0:00:20]} 35. Qh8# {[%emt 0:00:03]} 1-0

[Event "Portuguese-ch U14-20 2022"]
[Site "Fatima"]
[Date "2022.04.11"]
[Round "3.23"]
[White "Veleirinho, Tomas Carvalho"]
[Black "Guia, Artur Solovyov Eloy"]
[Result "0-1"]
[ECO "C55"]
[WhiteElo "1641"]
[BlackElo "1932"]
[Annotator "RC"]
[PlyCount "126"]
[EventDate "2022.04.10"]
[EventType "swiss"]
[EventCountry "POR"]
[SourceTitle "playchess.com"]
[Source "ChessBase"]
[SourceQuality "1"]
[TimeControl "5400+30"]

1. e4 {[%emt 0:01:11]} e5 {[%emt 0:00:32]} 2. Nf3 {[%emt 0:00:29]} Nc6 {[%emt 0:00:20]} 3. Bc4 {[%emt 0:00:34]} Nf6 {[%emt 0:00:25]} 4. d3 {[%emt 0:01:15]} Be7 {[%emt 0:00:27]} 5. O-O {[%emt 0:02:01]} d6 {[%emt 0:00:25]} 6. c3 {[%emt 0:00:47]} O-O {[%emt 0:00:11]} 7. Nbd2 {[%emt 0:01:45]} Na5 {[%emt 0:00:20]} 8. Bb5 {[%emt 0:00:42]} a6 {[%emt 0:00:32]} 9. Ba4 {[%emt 0:00:47]} b5 {[%emt 0:00:02]} 10. Bc2 {[%emt 0:00:18]} c5 {[%emt 0:00:02]} 11. h3 {[%emt 0:02:24]} h6 {[%emt 0:00:29]} 12. Re1 {[%emt 0:11:01]} Re8 {[%emt 0:00:36]} 13. d4 {[%emt 0:07:54]} Qc7 {[%emt 0:03:58]} 14. Nf1 {[%emt 0:07:09]} Nc4 {[%emt 0:00:49]} 15. b3 {[%emt 0:05:07]} Nb6 {[%emt 0:00:01]} 16. Be3 {[%emt 0:05:35]} Bf8 {[%emt 0:01:53]} 17. d5 {[%emt 0:02:45]} g6 {[%emt 0:00:47]} 18. Ng3 {[%emt 0:02:14]} Bg7 {[%emt 0:00:07]} 19. Qd2 {[%emt 0:03:18]} Kh7 {[%emt 0:00:01]} 20. Qe2 {[%emt 0:03:08]} Bd7 {[%emt 0:01:19]} 21. Nh2 {[%emt 0:02:25]} Rac8 {[%emt 0:01:14]} 22. Ng4 {[%emt 0:04:33]} Nxg4 {[%emt 0:01:11]} 23. hxg4 {[%emt 0:00:44]} Qd8 {[%emt 0:04:27]} 24. f3 {[%emt 0:11:34]} Qc7 {[%emt 0:04:06]} 25. Kf2 {[%emt 0:02:49]} f6 {[%emt 0:07:20]} 26. Rh1 {[%emt 0:02:06]} g5 {[%emt 0:02:30]} 27. Nh5 {[%emt 0:00:34]} Rh8 {[%emt 0:00:55]} 28. Nxg7 {[%emt 0:00:31]} Kxg7 {[%emt 0:00:01]} 29. Rac1 {[%emt 0:01:28]} a5 {[%emt 0:01:24]} 30. a3 {[%emt 0:00:32]} Ra8 {[%emt 0:09:55]} 31. Ra1 {[%emt 0:06:04]} Rhc8 {[%emt 0:01:51]} 32. Rhc1 {[%emt 0:00:43]} Rh8 {[%emt 0:01:08]} 33. Rh1 {[%emt 0:01:05]} Rh7 {[%emt 0:00:49]} 34. g3 {[%emt 0:01:52]} Rah8 {[%emt 0:00:41]} 35. Kg2 {[%emt 0:00:20]} Qc8 {[%emt 0:01:56]} 36. Bd3 {[%emt 0:02:00]} Qe8 {[%emt 0:03:41]} 37. Rh5 {[%emt 0:01:28]} Na8 {[%emt 0:00:42]} 38. b4 {[%emt 0:01:03]} c4 {[%emt 0:01:03]} 39. Bc2 {[%emt 0:00:16]} Qd8 {[%emt 0:00:02]} 40. Qf2 {[%emt 0:00:25]} Be8 {[%emt 0:00:37]} 41. Rh2 {[%emt 0:01:50]} Kg8 {[%emt 0:06:35]} 42. Rhh1 {[%emt 0:00:54]} Rb7 {[%emt 0:05:51]} 43. Rh2 {[%emt 0:00:55]} Bg6 {[%emt 0:12:07]} 44. Rhh1 {[%emt 0:00:28]} Kg7 {[%emt 0:01:51]} 45. Qg1 {[%emt 0:01:10]} Qc7 {[%emt 0:04:57]} 46. Qf2 {[%emt 0:00:23]} Rbb8 {[%emt 0:02:06]} 47. Qg1 {[%emt 0:00:28]} Nb6 {[%emt 0:01:39]} 48. Bxb6 {[%emt 0:00:19]} Rxb6 {[%emt 0:01:25]} 49. Qb1 {[%emt 0:02:09]} Ra6 {[%emt 0:01:01]} 50. Qg1 {[%emt 0:01:46]} Qb7 {[%emt 0:00:30]} 51. Qh2 {[%emt 0:00:52]} Qa8 {[%emt 0:00:29]} 52. Qg1 {[%emt 0:00:40]} Rh7 {[%emt 0:00:17]} 53. bxa5 {[%emt 0:01:05]} Rxa5 {[%emt 0:06:04]} 54. Qb6 {[%emt 0:00:26]} Rxa3 {[%emt 0:00:18]} 55. Rab1 {[%emt 0:01:00]} Rxc3 {[%emt 0:00:40]} 56. Rhc1 {[%emt 0:00:30]} Qa2 {[%emt 0:01:26]} 57. Qf2 {[%emt 0:00:15]} Be8 {[%emt 0:01:48]} 58. Ra1 {[%emt 0:00:17]} Qb2 {[%emt 0:00:01]} 59. Ra7+ {[%emt 0:00:18]} Kg8 {[%emt 0:02:06]} 60. Raa1 {[%emt 0:00:07]} Rb7 {[%emt 0:03:26]} 61. f4 {[%emt 0:00:34]} gxf4 {[%emt 0:01:28]} 62. gxf4 {[%emt 0:00:09]} Rg7 {[%emt 0:00:02]} 63. Bd1 {[%emt 0:01:22]} Qxf2+ {[%emt 0:00:44]} 0-1

[Event "Portuguese-ch U14-20 2022"]
[Site "Fatima"]
[Date "2022.04.11"]
[Round "3.24"]
[White "Goncalves, Ruan Lucas Alves"]
[Black "Paiva, Rodrigo Garcia"]
[Result "0-1"]
[ECO "B01"]
[WhiteElo "1963"]
[BlackElo "1667"]
[Annotator "RC"]
[PlyCount "42"]
[EventDate "2022.04.10"]
[EventType "swiss"]
[EventCountry "POR"]
[SourceTitle "playchess.com"]
[Source "ChessBase"]
[SourceQuality "1"]
[TimeControl "5400+30"]

1. e4 {[%emt 0:00:02]} d5 {[%emt 0:08:55]} 2. exd5 {[%emt 0:00:12]} Nf6 {[%emt 0:00:16]} 3. Nc3 {[%emt 0:00:23]} Nxd5 {[%emt 0:00:33]} 4. Nxd5 {[%emt 0:01:31]} Qxd5 {[%emt 0:00:09]} 5. Nf3 {[%emt 0:00:32]} Bg4 {[%emt 0:01:29]} 6. Be2 {[%emt 0:00:45]} Nc6 {[%emt 0:02:05]} 7. d4 {[%emt 0:01:15]} O-O-O {[%emt 0:00:59]} 8. c3 {[%emt 0:07:12]} e5 9. Be3 {[%emt 0:07:12]} exd4 {[%emt 0:34:37]} 10. Bxd4 {[%emt 0:00:30]} Bxf3 {[%emt 0:01:59]} 11. Bxf3 {[%emt 0:03:12]} Qe6+ 12. Kf1 {[%emt 0:02:07]} Nxd4 {[%emt 0:02:20]} 13. cxd4 {[%emt 0:00:17]} Qc4+ {[%emt 0:00:26]} 14. Be2 {[%emt 0:01:59]} Qxd4 {[%emt 0:00:23]} 15. Qb3 {[%emt 0:02:56]} Bc5 {[%emt 0:14:54]} 16. Qf3 {[%emt 0:07:37]} Kb8 {[%emt 0:06:03]} 17. g3 {[%emt 0:00:30]} Qd5 {[%emt 0:00:30]} 18. Kg2 {[%emt 0:00:51]} Qxf3+ {[%emt 0:00:41]} 19. Kxf3 {[%emt 0:00:11]} Rd6 {[%emt 0:01:53]} 20. Kg4 {[%emt 0:04:54]} Rd2 {[%emt 0:03:53]} 21. Bc4 {[%emt 0:01:48]} Rd4+ {[%emt 0:00:25]} 0-1

[Event "Portuguese-ch U14-20 2022"]
[Site "Fatima"]
[Date "2022.04.11"]
[Round "3.25"]
[White "Basilio, Rodrigo"]
[Black "Nalivaiko, Maksim"]
[Result "1-0"]
[ECO "C54"]
[WhiteElo "1941"]
[BlackElo "1439"]
[Annotator "NA RC"]
[PlyCount "120"]
[EventDate "2022.04.10"]
[EventType "swiss"]
[EventCountry "POR"]
[SourceTitle "playchess.com"]
[Source "ChessBase"]
[SourceQuality "1"]
[TimeControl "5400+30"]

1. e4 {[%emt 0:00:01]} e5 {[%emt 0:00:54]} 2. Nf3 {[%emt 0:00:06]} Nc6 {[%emt 0:00:21]} 3. Bc4 {[%emt 0:00:07]} Bc5 {[%emt 0:00:12]} 4. c3 {[%emt 0:00:23]} Nf6 {[%emt 0:00:53]} 5. d3 {[%emt 0:00:03]} O-O {[%emt 0:00:09]} 6. O-O {[%emt 0:00:04]} d6 {[%emt 0:00:14]} 7. h3 {[%emt 0:00:06]} Be6 {[%emt 0:00:09]} 8. Bb3 {[%emt 0:00:13]} h6 {[%emt 0:00:18]} 9. Re1 {[%emt 0:01:02]} b5 {[%emt 0:01:04]} 10. Bc2 {[%emt 0:02:30]} Qd7 {[%emt 0:00:49]} 11. d4 {[%emt 0:01:08]} exd4 {[%emt 0:00:16]} 12. cxd4 {[%emt 0:00:08]} Bb4 {[%emt 0:00:23]} 13. d5 {[%emt 0:02:33]} Bxe1 {[%emt 0:00:18]} 14. dxc6 {[%emt 0:04:32]} Bxf2+ $1 {[%emt 0:01:21]} 15. Kxf2 {[%emt 0:00:05]} Qxc6 {[%emt 0:01:01]} 16. Nd4 {[%emt 0:23:37]} Qb7 {[%emt 0:02:33]} 17. Qf3 {[%emt 0:06:41]} c5 {[%emt 0:05:44]} 18. Ne2 {[%emt 0:03:57]} d5 {[%emt 0:04:06]} 19. Ng3 {[%emt 0:08:55]} Rad8 20. Bxh6 Nxe4+ {[%emt 0:13:37]} 21. Bxe4 {[%emt 0:19:39]} (21. Nxe4 $11 dxe4 22. Bxe4) 21... dxe4 $17 {[%emt 0:01:44]} ({Much weaker is} 21... gxh6 $6 22. Nh5 (22. Bf5 Qe7 $11) 22... f5 23. Qg3+ Kh7 24. Bf3 $14) 22. Nxe4 {[%emt 0:00:01]} Qe7 {[%emt 0:05:14]} 23. Nbc3 {[%emt 0:08:41]} Qh4+ {[%emt 0:00:48]} 24. Kg1 {[%emt 0:01:12]} Qxh6 {[%emt 0:00:16]} 25. Nxc5 {[%emt 0:00:34]} Qg5 {[%emt 0:02:29]} 26. N3e4 {[%emt 0:01:05]} Qg6 {[%emt 0:01:49]} 27. Qf2 {[%emt 0:07:53]} Bxh3 {[%emt 0:01:24]} 28. Rf1 {[%emt 0:00:47]} Be6 {[%emt 0:00:56]} 29. Qh4 {[%emt 0:01:53]} Bd5 {[%emt 0:07:16]} 30. Rf4 {[%emt 0:05:02]} Qh6 {[%emt 0:02:01]} 31. Nf6+ {[%emt 0:01:50]} Kh8 {[%emt 0:04:42]} 32. Qg3 Qxf6 {[%emt 0:00:57]} 33. Rxf6 {[%emt 0:01:16]} gxf6 {[%emt 0:00:48]} 34. Qh3+ {[%emt 0:00:18]} Kg7 {[%emt 0:00:31]} 35. Qg4+ {[%emt 0:00:21]} Kh7 {[%emt 0:00:25]} 36. Nd7 {[%emt 0:00:57]} Rh8 {[%emt 0:04:33]} 37. Nxf6+ {[%emt 0:00:18]} Kh6 {[%emt 0:00:17]} 38. Qh5+ {[%emt 0:00:43]} Kg7 {[%emt 0:00:07]} 39. Qg5+ {[%emt 0:00:00]} Kf8 {[%emt 0:00:16]} 40. Nxd5 {[%emt 0:01:07]} Rd7 {[%emt 0:01:02]} 41. Qf5 {[%emt 0:00:27]} Rd6 {[%emt 0:00:26]} 42. Qe5 {[%emt 0:00:35]} Rhh6 {[%emt 0:00:46]} 43. Ne3 {[%emt 0:00:07]} Rde6 {[%emt 0:00:25]} 44. Qb8+ {[%emt 0:00:29]} Kg7 {[%emt 0:00:23]} 45. Nf5+ {[%emt 0:00:04]} Kh7 {[%emt 0:00:23]} 46. Nxh6 {[%emt 0:00:05]} Rxh6 {[%emt 0:00:21]} 47. Qxa7 Rf6 {[%emt 0:00:11]} 48. Qb7 {[%emt 0:00:30]} Kg7 {[%emt 0:00:20]} 49. Qxb5 {[%emt 0:00:04]} Re6 {[%emt 0:00:07]} 50. a4 {[%emt 0:00:06]} f5 {[%emt 0:00:12]} 51. Qxf5 {[%emt 0:00:06]} Rf6 {[%emt 0:01:02]} 52. Qxf6+ {[%emt 0:00:06]} Kxf6 {[%emt 0:00:18]} 53. a5 {[%emt 0:00:03]} Ke5 {[%emt 0:00:19]} 54. a6 {[%emt 0:00:08]} Kd4 {[%emt 0:00:10]} 55. a7 {[%emt 0:00:05]} Ke3 {[%emt 0:00:08]} 56. a8=Q {[%emt 0:00:04]} Ke2 57. b4 Kd3 {[%emt 0:00:14]} 58. b5 {[%emt 0:00:12]} Kc4 59. b6 {[%emt 0:00:04]} Kc5 {[%emt 0:00:27]} 60. b7 {[%emt 0:00:06]} Kb6 1-0

[Event "Portuguese-ch U14-20 2022"]
[Site "Fatima"]
[Date "2022.04.11"]
[Round "3.26"]
[White "Bartolo, Filipe Diogo Correia"]
[Black "Pacetti Terra, Nicolas"]
[Result "1-0"]
[ECO "A08"]
[WhiteElo "1869"]
[BlackElo "1756"]
[Annotator "NA RC"]
[PlyCount "69"]
[EventDate "2022.04.10"]
[EventType "swiss"]
[EventCountry "POR"]
[SourceTitle "playchess.com"]
[Source "ChessBase"]
[SourceQuality "1"]
[TimeControl "5400+30"]

1. Nf3 {[%emt 0:00:04]} Nf6 {[%emt 0:00:11]} 2. g3 {[%emt 0:00:04]} d5 {[%emt 0:00:22]} 3. Bg2 {[%emt 0:00:09]} e6 {[%emt 0:00:45]} 4. O-O {[%emt 0:00:06]} c5 {[%emt 0:00:14]} 5. d3 {[%emt 0:00:06]} Be7 {[%emt 0:00:16]} 6. Nbd2 {[%emt 0:00:06]} Nc6 {[%emt 0:00:10]} 7. e4 {[%emt 0:00:28]} O-O {[%emt 0:00:13]} 8. Re1 {[%emt 0:00:26]} b5 {[%emt 0:00:13]} 9. e5 {[%emt 0:01:09]} Nd7 {[%emt 0:00:05]} 10. Nf1 {[%emt 0:00:07]} a5 {[%emt 0:00:30]} 11. h4 {[%emt 0:00:06]} a4 {[%emt 0:01:50]} 12. N1h2 {[%emt 0:09:41]} a3 {[%emt 0:08:10]} 13. b3 {[%emt 0:00:41]} Bb7 {[%emt 0:02:18]} 14. Bf4 {[%emt 0:01:48]} Qb6 {[%emt 0:01:24]} 15. Ng5 {[%emt 0:12:23]} h6 {[%emt 0:04:53]} (15... Bxg5 $5 16. hxg5 Rab8 $15) 16. Qh5 {[%emt 0:06:13]} hxg5 {[%emt 0:02:40]} 17. hxg5 {[%emt 0:00:06]} Rfc8 {[%emt 0:33:38]} 18. Ng4 {[%emt 0:02:33]} Qd8 {[%emt 0:04:38] [#]} 19. Bf3 $11 {[%emt 0:16:54]} ({But not} 19. g6 $6 fxg6 20. Qxg6 Nf8 21. Nh6+ Kh8 22. Nf7+ Kg8 23. Nh6+ (23. Nxd8 Nxg6 24. Nxb7 Nd4 $11) (23. Qh5 $2 Qe8 $19) 23... Kh8 24. Nf7+ Kg8 25. Nh6+ $11) (19. Bxd5 $1 $16 {[%mdl 512]} g6 (19... Nf8 20. Be4) 20. Nh6+ Kg7 21. Nf5+ Kg8 22. Nh6+ Kg7 23. Nf5+ Kg8 24. Nh6+) 19... g6 {[%emt 0:10:44]} 20. Qh4 {[%emt 0:00:07]} Nd4 {[%emt 0:07:14]} 21. Kg2 {[%emt 0:00:19]} Nf5 {[%emt 0:01:50]} 22. Qh3 {[%emt 0:02:49]} Kg7 {[%emt 0:00:38]} 23. Nf6 {[%emt 0:00:11]} Nxf6 {[%emt 0:00:32]} 24. gxf6+ {[%emt 0:00:49]} Bxf6 {[%emt 0:00:06]} 25. exf6+ {[%emt 0:00:04]} Kxf6 {[%emt 0:01:08]} 26. g4 {[%emt 0:01:36]} Nd6 {[%emt 0:01:34]} 27. Qh4+ {[%emt 0:01:33]} Kg7 {[%emt 0:00:58]} 28. Qh6+ {[%emt 0:00:10]} Kg8 {[%emt 0:00:11]} 29. Rh1 {[%emt 0:00:14]} Qf6 {[%emt 0:01:16]} 30. Qh7+ {[%emt 0:00:45]} Kf8 {[%emt 0:00:05]} 31. Bxd6+ {[%emt 0:00:09]} Ke8 {[%emt 0:00:06]} 32. Qh8+ {[%emt 0:00:08]} Qxh8 {[%emt 0:00:11]} 33. Rxh8+ {[%emt 0:00:09]} Kd7 {[%emt 0:00:02]} 34. Rxc8 {[%emt 0:00:29]} Rxc8 {[%emt 0:00:05]} 35. Be5 {[%emt 0:00:44]} 1-0

[Event "Portuguese-ch U14-20 2022"]
[Site "Fatima"]
[Date "2022.04.11"]
[Round "3.27"]
[White "Korotkyi, Daniyil"]
[Black "Almeida, Joao Pedro Dias"]
[Result "1/2-1/2"]
[ECO "C50"]
[WhiteElo "1726"]
[BlackElo "1508"]
[Annotator "NA RC"]
[PlyCount "107"]
[EventDate "2022.04.10"]
[EventType "swiss"]
[EventCountry "POR"]
[SourceTitle "playchess.com"]
[Source "ChessBase"]
[SourceQuality "1"]
[TimeControl "5400+30"]

1. e4 {[%emt 0:05:02]} e5 {[%emt 0:00:05]} 2. Nf3 {[%emt 0:00:57]} Nc6 {[%emt 0:00:05]} 3. Bc4 {[%emt 0:01:19]} Bc5 {[%emt 0:00:10]} 4. O-O {[%emt 0:00:33]} Nf6 {[%emt 0:00:26]} 5. Nc3 {[%emt 0:01:40]} O-O {[%emt 0:00:18]} 6. d3 {[%emt 0:00:30]} h6 {[%emt 0:00:05]} 7. a3 {[%emt 0:00:48]} d6 {[%emt 0:03:09]} 8. h3 {[%emt 0:00:33]} a5 {[%emt 0:02:57]} 9. Bd2 {[%emt 0:03:20]} Be6 {[%emt 0:06:42]} 10. Re1 {[%emt 0:07:10]} Ne7 {[%emt 0:10:21]} 11. Qe2 {[%emt 0:12:03]} c6 {[%emt 0:02:50]} 12. a4 {[%emt 0:04:35]} Qd7 {[%emt 0:04:22]} 13. Kh2 Nh7 {[%emt 0:08:35]} 14. Be3 {[%emt 0:06:51]} Bxe3 {[%emt 0:00:39]} 15. Qxe3 {[%emt 0:21:58]} d5 {[%emt 0:00:48]} 16. exd5 {[%emt 0:00:09]} cxd5 {[%emt 0:00:19]} 17. Bb5 {[%emt 0:00:06]} Nc6 {[%emt 0:26:39]} 18. Bxc6 {[%emt 0:05:42]} bxc6 {[%emt 0:00:46]} 19. Qxe5 {[%emt 0:01:41]} Rfe8 {[%emt 0:02:32]} 20. Qg3 {[%emt 0:11:07]} Nf6 {[%emt 0:04:47]} 21. Nd4 {[%emt 0:01:49]} c5 {[%emt 0:01:07]} 22. Nxe6 {[%emt 0:00:39]} Rxe6 {[%emt 0:00:34]} 23. Rxe6 {[%emt 0:09:34]} Qxe6 {[%emt 0:00:29]} 24. Qf3 {[%emt 0:00:25]} Rb8 {[%emt 0:00:51]} 25. Rb1 {[%emt 0:03:10]} d4 {[%emt 0:00:52]} 26. Ne4 {[%emt 0:00:59]} Nxe4 {[%emt 0:00:19]} 27. Qxe4 {[%emt 0:00:05]} Qa2 28. Qe5 Qxb1 {[%emt 0:03:51]} 29. Qxb8+ {[%emt 0:00:51]} Kh7 {[%emt 0:00:03]} 30. Qb3 {[%emt 0:00:33]} Qc1 {[%emt 0:02:15]} 31. g3 {[%emt 0:00:14]} f6 32. Kg2 h5 {[%emt 0:02:30]} 33. Qc4 {[%emt 0:01:20]} Qg5 {[%emt 0:01:23]} 34. Qe6 {[%emt 0:00:34]} f5 {[%emt 0:01:16]} 35. Qe2 {[%emt 0:00:33]} h4 {[%emt 0:01:34]} 36. g4 {[%emt 0:00:45]} g6 {[%emt 0:05:20]} 37. Qe6 Qd2 {[%emt 0:04:28]} 38. Qe7+ {[%emt 0:01:03]} Kg8 {[%emt 0:00:37]} 39. gxf5 {[%emt 0:00:32]} gxf5 {[%emt 0:01:27]} 40. Qxh4 {[%emt 0:00:23]} Qxc2 {[%emt 0:00:22]} 41. Qg5+ {[%emt 0:00:10]} Kh8 {[%emt 0:00:19]} 42. Qh6+ {[%emt 0:00:49]} Kg8 {[%emt 0:00:09]} 43. Qg6+ {[%emt 0:00:08]} Kh8 {[%emt 0:00:12]} 44. Qe8+ {[%emt 0:00:30]} Kg7 {[%emt 0:00:47]} 45. Qb5 {[%emt 0:00:34]} Qc1 {[%emt 0:00:32]} 46. Qxa5 {[%emt 0:01:10]} Qg5+ {[%emt 0:00:23]} 47. Kf1 {[%emt 0:00:17]} Qc1+ {[%emt 0:00:42]} 48. Qe1 {[%emt 0:00:10]} Qxb2 {[%emt 0:00:07]} 49. Qe7+ {[%emt 0:00:23]} Kg6 {[%emt 0:00:27]} 50. Qxc5 {[%emt 0:00:51]} Qb1+ {[%emt 0:01:04]} 51. Ke2 Qa2+ {[%emt 0:00:03]} 52. Kf1 {[%emt 0:01:12]} Qb1+ {[%emt 0:00:16]} 53. Ke2 {[%emt 0:00:18]} Qa2+ {[%emt 0:00:05]} 54. Kf1 {[%emt 0:00:38]} 1/2-1/2

[Event "Portuguese-ch U14-20 2022"]
[Site "Fatima"]
[Date "2022.04.11"]
[Round "3.28"]
[White "Camacho, Filipa Fernandes Bri"]
[Black "Coelho, Goncalo Cavaz"]
[Result "0-1"]
[ECO "E10"]
[WhiteElo "1467"]
[BlackElo "1680"]
[Annotator "NA RC"]
[PlyCount "104"]
[EventDate "2022.04.10"]
[EventType "swiss"]
[EventCountry "POR"]
[SourceTitle "playchess.com"]
[Source "ChessBase"]
[SourceQuality "1"]
[TimeControl "5400+30"]

1. c4 {[%emt 0:00:07]} e6 {[%emt 0:00:18]} 2. d4 {[%emt 0:01:00]} Nf6 {[%emt 0:00:12]} 3. Nf3 {[%emt 0:00:41]} d5 {[%emt 0:00:38]} 4. e3 {[%emt 0:00:34]} Bb4+ {[%emt 0:00:34]} 5. Bd2 {[%emt 0:00:21]} Bd6 {[%emt 0:02:24]} 6. Bd3 {[%emt 0:04:22]} O-O {[%emt 0:00:36]} 7. O-O {[%emt 0:00:05]} c5 {[%emt 0:00:21]} 8. Nc3 {[%emt 0:02:29]} Nc6 {[%emt 0:00:45]} 9. cxd5 {[%emt 0:01:16]} exd5 {[%emt 0:00:37]} 10. dxc5 {[%emt 0:04:57]} Bxc5 {[%emt 0:00:09]} 11. Ne2 {[%emt 0:00:13]} Ne4 {[%emt 0:01:50]} 12. a3 {[%emt 0:01:09]} Bg4 {[%emt 0:05:12]} 13. Ne1 {[%emt 0:05:36]} Qe7 {[%emt 0:08:37]} 14. Qc2 {[%emt 0:09:47]} Ne5 {[%emt 0:13:44]} 15. Nc3 {[%emt 0:05:27]} Nxd2 {[%emt 0:09:42]} 16. Nxd5 {[%emt 0:05:26]} Qd6 {[%emt 0:12:59]} 17. Qxd2 {[%emt 0:00:24]} Nxd3 {[%emt 0:00:21]} 18. Qxd3 {[%emt 0:00:12]} Rad8 {[%emt 0:01:14]} 19. Nf4 {[%emt 0:00:27]} Qxd3 {[%emt 0:03:52]} 20. Nexd3 {[%emt 0:00:43]} Bb6 {[%emt 0:00:10]} 21. Ne5 {[%emt 0:01:07]} Bf5 {[%emt 0:01:31]} 22. Nc4 {[%emt 0:05:34]} Bc7 {[%emt 0:00:58]} 23. a4 {[%emt 0:04:54]} Bxf4 {[%emt 0:09:04]} 24. exf4 {[%emt 0:00:56]} Rd4 {[%emt 0:00:18]} 25. Ne3 {[%emt 0:01:02]} Rxf4 {[%emt 0:00:39]} 26. Nxf5 {[%emt 0:09:23]} Rxf5 {[%emt 0:00:11]} 27. g4 {[%emt 0:01:09]} Rf4 {[%emt 0:00:11]} 28. f3 {[%emt 0:00:50]} h5 {[%emt 0:00:20]} 29. gxh5 {[%emt 0:00:55]} Rd8 {[%emt 0:01:19]} 30. Kg2 {[%emt 0:00:49]} Rd2+ {[%emt 0:00:45]} 31. Rf2 {[%emt 0:01:45]} Rxf2+ {[%emt 0:00:51]} 32. Kxf2 {[%emt 0:00:05]} Rb4 {[%emt 0:00:09]} 33. Ra2 {[%emt 0:00:49]} a5 {[%emt 0:00:11]} 34. Kg3 {[%emt 0:00:55]} Kh7 {[%emt 0:00:13]} 35. f4 {[%emt 0:00:37]} f5 {[%emt 0:00:46]} 36. Kf3 {[%emt 0:04:43]} Kh6 {[%emt 0:01:10]} 37. Ra1 {[%emt 0:02:16]} Rb3+ {[%emt 0:00:18]} 38. Kf2 {[%emt 0:01:27]} Rxb2+ {[%emt 0:00:10]} 39. Ke3 {[%emt 0:01:04]} Rb4 {[%emt 0:00:10]} 40. Rg1 {[%emt 0:00:23]} Rxa4 {[%emt 0:00:12]} 41. Rg6+ {[%emt 0:00:08]} Kh7 {[%emt 0:01:31]} 42. Rg5 {[%emt 0:00:59]} Rb4 {[%emt 0:03:02]} 43. Rxf5 {[%emt 0:01:36]} b5 {[%emt 0:00:32]} 44. Kd3 {[%emt 0:02:27]} a4 {[%emt 0:01:26]} 45. Rf7 {[%emt 0:03:00]} a3 {[%emt 0:00:49]} 46. Kc2 {[%emt 0:02:15]} a2 {[%emt 0:01:36]} 47. Ra7 {[%emt 0:00:09]} Rxf4 {[%emt 0:00:50]} 48. Kb3 {[%emt 0:03:14]} Ra4 {[%emt 0:00:49]} 49. Rxa4 {[%emt 0:00:20]} bxa4+ {[%emt 0:00:10]} 50. Kxa2 {[%emt 0:00:03]} Kh6 {[%emt 0:00:06]} 51. Ka3 {[%emt 0:00:07]} Kxh5 {[%emt 0:00:18]} 52. Kxa4 {[%emt 0:00:05]} Kh4 {[%emt 0:00:30]} 0-1

[Event "Portuguese-ch U14-20 2022"]
[Site "Fatima"]
[Date "2022.04.11"]
[Round "3.29"]
[White "Marques Serra, David"]
[Black "Torres Rodero, Francisco"]
[Result "1/2-1/2"]
[ECO "D02"]
[WhiteElo "1734"]
[BlackElo "2048"]
[Annotator "NA RC"]
[PlyCount "62"]
[EventDate "2022.04.10"]
[EventType "swiss"]
[EventCountry "POR"]
[SourceTitle "playchess.com"]
[Source "ChessBase"]
[SourceQuality "1"]
[TimeControl "5400+30"]

1. d4 {[%emt 0:00:01]} Nf6 {[%emt 0:00:08]} 2. Bf4 {[%emt 0:00:03]} d5 {[%emt 0:00:09]} 3. Nf3 {[%emt 0:00:03]} e6 {[%emt 0:00:16]} 4. e3 c5 {[%emt 0:00:05]} 5. c3 {[%emt 0:00:16]} Bd6 {[%emt 0:01:22]} 6. Bg3 {[%emt 0:00:06]} Nc6 {[%emt 0:00:35]} 7. Ne5 {[%emt 0:00:21]} Qc7 {[%emt 0:07:57]} 8. f4 {[%emt 0:00:10]} cxd4 {[%emt 0:06:36]} 9. exd4 {[%emt 0:00:27]} Ne4 {[%emt 0:02:51]} 10. Nd2 {[%emt 0:05:30]} Nxg3 {[%emt 0:02:23]} 11. hxg3 {[%emt 0:00:02]} Nxe5 {[%emt 0:00:38]} 12. fxe5 {[%emt 0:00:20]} Be7 {[%emt 0:00:51]} 13. Qg4 {[%emt 0:01:50]} g6 {[%emt 0:05:41]} 14. Bd3 {[%emt 0:03:39]} Bf8 {[%emt 0:05:24]} 15. Qf4 {[%emt 0:03:31]} Bg7 {[%emt 0:03:24]} 16. g4 {[%emt 0:01:09]} f6 {[%emt 0:02:54]} 17. Nf3 {[%emt 0:06:52]} fxe5 {[%emt 0:02:09]} 18. dxe5 {[%emt 0:00:22]} Qf7 {[%emt 0:04:22]} 19. Bb5+ {[%emt 0:00:58]} Kf8 {[%emt 0:01:12]} 20. Qxf7+ {[%emt 0:01:18]} Kxf7 {[%emt 0:00:05]} 21. O-O {[%emt 0:00:12]} Ke7 {[%emt 0:05:46]} 22. Rae1 {[%emt 0:07:14]} Bd7 {[%emt 0:04:57]} 23. Bxd7 {[%emt 0:01:35]} Kxd7 {[%emt 0:00:07]} 24. Re2 {[%emt 0:06:20]} Rhf8 {[%emt 0:02:41]} 25. g3 {[%emt 0:00:54]} Rac8 {[%emt 0:10:12]} 26. Rd2 {[%emt 0:01:07]} Rc4 {[%emt 0:05:03]} 27. Rd4 {[%emt 0:00:22]} Rxd4 {[%emt 0:01:28]} 28. cxd4 {[%emt 0:00:01]} Rc8 $11 {[%emt 0:00:32]} 29. Kg2 {[%emt 0:01:23]} h6 {[%emt 0:05:25]} 30. Ne1 {[%emt 0:01:50]} Ke7 {[%emt 0:02:26]} 31. Nf3 {[%emt 0:07:59]} g5 {[%emt 0:11:30]} 1/2-1/2